fUSD/lending_fUSD_20251117
["ID","MTS","AMOUNT","RATE_DAILY","PERIOD"]
[394236811,1763399302572,-1320.599488,0.00041452,120]
[394236812,1763399302610,-302.60763,0.00041452,120]
[394236813,1763399302656,-151.0,0.00041452,120]
[394236814,1763399302706,-1320.599488,0.00041452,120]
[394236815,1763399302756,-302.60763,0.00041452,120]
[394236816,1763399302798,-151.0,0.00041452,120]
[394236817,1763399302838,-1320.599488,0.00041452,120]
[394236818,1763399302879,-302.60763,0.00041452,120]
[394236819,1763399302922,-1320.599488,0.00041452,120]
[394236820,1763399302968,-1320.599488,0.00041452,120]
[394236821,1763399303012,-302.60763,0.00041452,120]
[394236822,1763399303057,-1320.599488,0.00041452,120]
[394236823,1763399303103,-302.60763,0.00041452,120]
[394236824,1763399303146,-151.0,0.00041452,120]
[394236825,1763399303190,-1320.599488,0.00041452,120]
[394236826,1763399303231,-151.0,0.00041452,120]
[394236827,1763399303272,-302.60763,0.00041452,120]
[394236828,1763399303314,-1320.599488,0.00041452,120]
[394236829,1763399303355,-151.0,0.00041452,120]
[394236830,1763399303398,-302.60763,0.00041452,120]
[394236831,1763399303439,-151.0,0.00041452,120]
[394236832,1763399303480,-1320.599488,0.00041452,120]
[394236833,1763399303524,-302.60763,0.00041452,120]
[394236834,1763399303564,-1320.599488,0.00041452,120]
[394236835,1763399303607,-151.0,0.00041452,120]
[394236836,1763399303657,-302.60763,0.00041452,120]
[394236837,1763399303708,-151.0,0.00041452,120]
[394236838,1763399303752,-151.0,0.00041452,120]
[394236839,1763399303801,-1320.599488,0.00041452,120]
[394236840,1763399303846,-250.417912,0.00041452,120]
[394236841,1763399303892,-302.60763,0.00041452,120]
[394236842,1763399303937,-664.38915,0.00041452,120]
[394236843,1763399303982,-1320.599488,0.00041452,120]
[394236844,1763399304028,-302.60763,0.00041452,120]
[394236845,1763399304077,-1320.599488,0.00041452,120]
[394236846,1763399304124,-664.38915,0.00041452,120]
[394236847,1763399304174,-302.60763,0.00041452,120]
[394236848,1763399304223,-664.38915,0.00041452,120]
[394236849,1763399304270,-302.60763,0.00041452,120]
[394236850,1763399304314,-1320.599488,0.00041452,120]
[394236851,1763399304360,-302.607627,0.00041452,120]
[394236852,1763399304406,-1320.599488,0.00041452,120]
[394236853,1763399304448,-1320.599479,0.00041452,120]
[394236854,1763399304489,-664.38915,0.00041452,120]
[394236855,1763399304530,-664.38915,0.00041452,120]
[394236856,1763399304573,-664.38915,0.00041452,120]
[394236857,1763399304619,-151.0,0.00041452,120]
[394236858,1763399304662,-664.38915,0.00041452,120]
[394236859,1763399304706,-446.831661,0.00041452,30]
[394236860,1763399304750,-151.0,0.00041452,120]
[394236861,1763399304794,-664.38915,0.00041452,120]
[394236862,1763399304839,-446.831661,0.00041452,30]
[394236863,1763399304885,-151.0,0.00041452,120]
[394236864,1763399304929,-664.38915,0.00041452,120]
[394236865,1763399304978,-446.831661,0.00041452,30]
[394236866,1763399305026,-151.0,0.00041452,120]
[394236867,1763399305081,-446.831661,0.00041452,30]
[394236868,1763399305130,-664.38915,0.00041452,120]
[394236869,1763399305180,-446.831661,0.00041452,30]
[394236870,1763399305228,-664.38915,0.00041452,120]
[394236871,1763399305273,-446.831661,0.00041452,30]
[394236872,1763399305317,-664.38915,0.00041452,120]
[394236873,1763399305358,-664.38915,0.00041452,120]
[394236874,1763399305400,-446.831661,0.00041452,30]
[394236875,1763399305440,-664.38915,0.00041452,120]
[394236876,1763399305483,-446.831661,0.00041452,30]
[394236877,1763399305525,-151.0,0.00041452,120]
[394236878,1763399305567,-664.38915,0.00041452,120]
[394236879,1763399305611,-151.0,0.00041452,120]
[394236880,1763399305660,-151.0,0.00041452,120]
[394236881,1763399305715,-446.831661,0.00041452,30]
[394236882,1763399305768,-151.0,0.00041452,120]
[394236883,1763399305819,-151.0,0.00041452,120]
[394236884,1763399305875,-446.831661,0.00041452,30]
[394236885,1763399305927,-153.782234,0.00041452,120]
[394236886,1763399305978,-151.0,0.00041452,90]
[394236887,1763399306028,-664.38915,0.00041452,120]
[394236888,1763399306078,-151.0,0.00041452,120]
[394236889,1763399306135,-446.831661,0.00041452,30]
[394236890,1763399306184,-151.0,0.00041452,90]
[394236891,1763399306232,-446.831661,0.00041452,30]
[394236892,1763399306281,-664.38915,0.00041452,120]
[394236893,1763399306331,-151.0,0.00041452,120]
[394236894,1763399306378,-151.000001,0.00041452,90]
[394236895,1763399306423,-664.38915,0.00041452,120]
[394236896,1763399306647,-446.831661,0.00041452,30]
[394236897,1763399306694,-151.0,0.00041452,120]
[394236898,1763399306740,-664.38915,0.00041452,120]
[394236899,1763399306788,-446.831661,0.00041452,30]
[394236900,1763399306835,-664.389143,0.00041452,120]
[394236901,1763399306882,-151.0,0.00041452,120]
[394236902,1763399306929,-446.831661,0.00041452,30]
[394236903,1763399306976,-151.0,0.00041452,120]
[394236906,1763399307026,-446.831661,0.00041452,30]
[394236908,1763399307074,-151.0,0.00041452,120]
[394236909,1763399307125,-446.831661,0.00041452,30]
[394236910,1763399307170,-151.0,0.00041452,120]
[394236911,1763399307218,-446.831661,0.00041452,30]
[394236912,1763399307266,-151.0,0.00041452,120]
[394236913,1763399307311,-151.0,0.00041452,120]
[394236914,1763399307356,-151.0,0.00041452,120]
[394236915,1763399307403,-446.831661,0.00041452,30]
[394236916,1763399307450,-446.831666,0.00041452,30]
[394236917,1763399307496,-151.0,0.00041452,120]
[394236918,1763399307543,-151.0,0.00041452,120]
[394236919,1763399307592,-361.082356,0.00041452,120]
[394236920,1763399307640,-361.082356,0.00041452,120]
[394236921,1763399307694,-361.082356,0.00041452,120]
[394236922,1763399307746,-361.082356,0.00041452,120]
[394236923,1763399307794,-361.082356,0.00041452,120]
[394236924,1763399307843,-361.082356,0.00041452,120]
[394236925,1763399307891,-361.082356,0.00041452,120]
[394236926,1763399308273,-150.0,0.00041452,30]
[394236927,1763399308318,-700.39,0.00041452,30]
[394236928,1763399308363,-151.0,0.00041453,120]
[394236929,1763399308404,-151.0,0.00041453,120]
[394236930,1763399308445,-151.0,0.00041453,120]
[394236931,1763399308489,-159.688385,0.00041453,120]
[394236932,1763399308531,-151.0,0.00041453,120]
[394236933,1763399308571,-151.0,0.00041453,120]
[394236934,1763399308614,-151.0,0.00041453,120]
[394236935,1763399308654,-151.0,0.00041453,120]
[394236936,1763399308694,-151.0,0.00041453,120]
[394236937,1763399308736,-151.0,0.00041453,30]
[394236938,1763399308777,-151.0,0.00041453,30]
[394236939,1763399308817,-154.201287,0.00041453,120]
[394236940,1763399308856,-153.729362,0.00041453,120]
[394236941,1763399308897,-151.0,0.00041453,120]
[394236942,1763399308938,-151.0,0.00041453,120]
[394236943,1763399308978,-151.0,0.00041453,120]
[394236944,1763399309020,-151.0,0.00041453,120]
[394236945,1763399309065,-151.0,0.00041453,120]
[394236946,1763399309110,-151.0,0.00041453,120]
[394236947,1763399309155,-151.0,0.00041453,120]
[394236948,1763399309196,-151.0,0.00041453,120]
[394236949,1763399309240,-155.419484,0.00041453,120]
[394236950,1763399309280,-151.0,0.00041453,120]
[394236951,1763399309322,-151.0,0.00041453,120]
[394236952,1763399309364,-151.0,0.00041453,120]
[394236953,1763399309404,-151.0,0.00041453,120]
[394236954,1763399309443,-151.0,0.00041453,120]
[394236955,1763399309480,-151.0,0.00041453,120]
[394236956,1763399309516,-151.0,0.00041453,120]
[394236957,1763399309552,-151.0,0.00041453,120]
[394236958,1763399309591,-242.358057,0.00041453,120]
[394236959,1763399309633,-155.875893,0.00041453,120]
[394236960,1763399309674,-155.875893,0.00041453,120]
[394236961,1763399309715,-155.875893,0.00041453,120]
[394236962,1763399309756,-151.0,0.00041453,120]
[394236963,1763399309796,-155.875893,0.00041453,120]
[394236964,1763399309837,-151.0,0.00041453,120]
[394236965,1763399309879,-155.875893,0.00041453,120]
[394236966,1763399309920,-151.0,0.00041453,120]
[394236967,1763399309962,-155.875893,0.00041453,120]
[394236968,1763399310005,-155.875893,0.00041453,120]
[394236969,1763399310046,-155.875893,0.00041453,120]
[394236970,1763399310088,-155.875893,0.00041453,120]
[394236971,1763399310127,-155.875893,0.00041453,120]
[394236972,1763399310167,-155.875893,0.00041453,120]
[394236973,1763399310207,-155.875893,0.00041453,120]
[394236974,1763399310250,-155.875893,0.00041453,120]
[394236975,1763399310290,-155.875893,0.00041453,120]
[394236976,1763399310330,-155.875893,0.00041453,120]
[394236977,1763399310376,-151.0,0.00041453,120]
[394236978,1763399310415,-153.975795,0.00041453,120]
[394236979,1763399310453,-151.0,0.00041453,120]
[394236980,1763399310492,-155.875893,0.00041453,120]
[394236981,1763399310528,-151.0,0.00041453,120]
[394236982,1763399310564,-155.875893,0.00041453,120]
[394236983,1763399310601,-212.502162,0.00041453,120]
[394236984,1763399310642,-155.875893,0.00041453,120]
[394236985,1763399310900,-155.875893,0.00041453,120]
[394236986,1763399310946,-155.875889,0.00041453,120]
[394236987,1763399310989,-151.0,0.00041453,120]
[394236988,1763399311029,-151.0,0.00041453,120]
[394236989,1763399311070,-151.0,0.00041453,120]
[394236990,1763399311113,-151.0,0.00041453,120]
[394236991,1763399311154,-151.0,0.00041453,120]
[394236992,1763399311195,-151.0,0.00041453,120]
[394236993,1763399311234,-151.0,0.00041453,120]
[394236994,1763399311272,-151.0,0.00041453,120]
[394236995,1763399311309,-151.0,0.00041453,120]
[394236996,1763399311348,-151.0,0.00041453,120]
[394236997,1763399311389,-151.0,0.00041453,120]
[394236998,1763399311426,-151.0,0.00041453,120]
[394236999,1763399311464,-151.0,0.00041453,120]
[394237000,1763399311500,-151.0,0.00041453,120]
[394237001,1763399311539,-151.0,0.00041453,120]
[394237002,1763399311577,-151.0,0.00041453,120]
[394237003,1763399311616,-151.0,0.00041453,120]
[394237004,1763399311653,-163.687621,0.00041453,120]
[394237005,1763399311691,-156.99417,0.00041453,120]
[394237006,1763399311728,-156.99417,0.00041453,120]
[394237007,1763399311767,-156.99417,0.00041453,120]
[394237008,1763399311803,-156.99417,0.00041453,120]
[394237009,1763399311840,-156.99417,0.00041453,120]
[394237010,1763399311879,-156.99417,0.00041453,120]
[394237011,1763399311918,-156.99417,0.00041453,120]
[394237012,1763399311957,-156.99417,0.00041453,120]
[394237013,1763399311996,-156.99417,0.00041453,120]
[394237014,1763399312038,-156.99417,0.00041453,120]
[394237015,1763399312079,-156.99417,0.00041453,120]
[394237016,1763399312124,-156.99417,0.00041453,120]
[394237017,1763399312165,-156.99417,0.00041453,120]
[394237018,1763399312203,-156.99417,0.00041453,120]
[394237019,1763399312242,-156.99417,0.00041453,120]
[394237020,1763399312281,-156.99417,0.00041453,120]
[394237021,1763399312319,-156.99417,0.00041453,120]
[394237022,1763399312358,-156.99417,0.00041453,120]
[394237023,1763399312397,-156.99417,0.00041453,120]
[394237024,1763399312433,-151.0,0.00041453,120]
[394237025,1763399312472,-156.994162,0.00041453,120]
[394237026,1763399312509,-151.0,0.00041453,120]
[394237027,1763399312547,-151.0,0.00041453,120]
[394237028,1763399312584,-151.0,0.00041453,120]
[394237029,1763399312622,-151.0,0.00041453,120]
[394237030,1763399312660,-151.0,0.00041453,120]
[394237031,1763399312698,-151.0,0.00041453,120]
[394237032,1763399312736,-151.0,0.00041453,120]
[394237033,1763399312775,-151.0,0.00041453,120]
[394237034,1763399312813,-151.0,0.00041453,120]
[394237035,1763399312853,-151.0,0.00041453,120]
[394237036,1763399312894,-151.0,0.00041453,120]
[394237037,1763399312934,-151.0,0.00041453,120]
[394237038,1763399312975,-151.0,0.00041453,120]
[394237039,1763399313019,-151.0,0.00041453,120]
[394237040,1763399313062,-151.0,0.00041453,120]
[394237041,1763399313105,-151.0,0.00041453,120]
[394237042,1763399313145,-151.0,0.00041453,120]
[394237043,1763399313185,-151.0,0.00041453,120]
[394237044,1763399313227,-151.0,0.00041453,120]
[394237045,1763399313266,-151.0,0.00041453,120]
[394237046,1763399313305,-151.0,0.00041453,120]
[394237047,1763399313344,-151.0,0.00041453,120]
[394237048,1763399313384,-151.726235,0.00041453,120]
[394237049,1763399313421,-151.0,0.00041453,120]
[394237050,1763399313461,-151.0,0.00041453,120]
[394237051,1763399313503,-151.0,0.00041453,120]
[394237052,1763399313541,-151.0,0.00041453,120]
[394237053,1763399313581,-151.0,0.00041453,120]
[394237054,1763399313626,-151.0,0.00041453,120]
[394237055,1763399313669,-151.0,0.00041453,120]
[394237056,1763399313713,-151.0,0.00041453,120]
[394237057,1763399313755,-151.0,0.00041453,120]
[394237058,1763399313801,-151.0,0.00041453,120]
[394237059,1763399313845,-151.0,0.00041453,120]
[394237060,1763399313889,-177.446999,0.00041453,120]
[394237061,1763399313931,-151.0,0.00041453,120]
[394237062,1763399313972,-151.0,0.00041453,120]
[394237063,1763399314016,-155.14276,0.00041453,120]
[394237064,1763399314061,-500.0,0.00041468,30]
[394237065,1763399314102,-239.84119403,0.00041468,30]
[394237066,1763399314141,-248.71531821,0.00041468,31]
[394237067,1763399314178,-257.91778498,0.00041468,32]
[394237068,1763399314216,-267.46074303,0.00041468,33]
[394237069,1763399314258,-500.0,0.00041469,120]
[394237070,1763399314298,-856.63,0.000415,30]
[394237071,1763399314335,-566.47,0.000415,30]
[394237072,1763399314373,-500.0,0.00041644,120]
[394237073,1763399314410,-951.44000813,0.000417,120]
[394237074,1763399314446,-151.0,0.000417,30]
[394237075,1763399314482,-200.0,0.00041705,30]
[394237076,1763399314519,-207.4,0.00041705,31]
[394237077,1763399314557,-215.0738,0.00041705,32]
[394237078,1763399314595,-223.0315306,0.00041705,33]
[394237079,1763399314645,-231.28369723,0.00041705,34]
[394237080,1763399314685,-1095.0,0.00041707,30]
[394237081,1763399314724,-508.25262477,0.00041707,60]
[394237082,1763399314763,-311.05286911,0.00041707,60]
[394237083,1763399314800,-500.0,0.00041721,120]
[394237084,1763399314837,-530.98,0.00041721,120]
[394237085,1763399314878,-152.02,0.00041746,120]
[394237086,1763399314919,-1886.0,0.00041761,120]
[394237087,1763399314963,-152.48,0.00041784,120]
[394237088,1763399315008,-152.73238827,0.00041884,120]
[394237089,1763399315321,-500.0,0.00041918,120]
[394237090,1763399315364,-500.0,0.00041995,120]
[394237091,1763399315404,-15000.0,0.00042,120]
[394237092,1763399315443,-517.61736254,0.00042,120]
[394237093,1763399315488,-300.0,0.00042,120]
[394237094,1763399315530,-1000.0,0.00042,120]
[394237095,1763399315570,-300.0,0.00042,60]
[394237096,1763399315611,-502.86719783,0.00042,60]
[394237097,1763399315651,-163.50979571,0.00042,120]
[394237098,1763399315692,-245.57473912,0.00042,120]
[394237099,1763399315734,-166.46074298,0.00042,30]
[394237100,1763399315776,-851.95012723,0.00042,120]
[394237101,1763399315815,-170.0,0.00042,120]
[394237102,1763399315857,-500.0,0.00042192,120]
[394237103,1763399315903,-500.0,0.00042269,120]
[394237104,1763399315944,-9159.0,0.000423,118]
[394237105,1763399315987,-90000.0,0.0004239,119]
[394237106,1763399316033,-500.0,0.00042466,120]
[394237107,1763399316077,-200.0,0.00042469,120]
[394237108,1763399316124,-150.0,0.00042484,120]
[394237109,1763399316163,-25000.0,0.000425,120]
[394237110,1763399316204,-2307.0,0.000425,120]
[394237111,1763399316240,-5000.0,0.000425,120]
[394237112,1763399316280,-150.0,0.00042507,120]
[394237113,1763399316321,-500.0,0.00042543,120]
[394237114,1763399316360,-856.63,0.000427,30]
[394237115,1763399316398,-566.47,0.000427,30]
[394237116,1763399316440,-501.39,0.0004274,120]
[394237117,1763399316480,-5620.38950841,0.000428,120]
[394237118,1763399316520,-5000.0,0.000428,120]
[394237119,1763399316562,-472.51,0.00042817,120]
[394237120,1763399316601,-213.0,0.0004295,30]
[394237121,1763399316638,-15000.0,0.00043,120]
[394237122,1763399316679,-150.0,0.00043,120]
[394237123,1763399316724,-243.64238629,0.00043,120]
[394237124,1763399316766,-214.5289001,0.00043,120]
[394237125,1763399316805,-399.94712443,0.00043,60]
[394237126,1763399316845,-1114.0,0.00043,120]
[394237127,1763399316890,-352.3634805,0.00043,120]
[394237128,1763399316936,-174.87339412,0.00043,120]
[394237129,1763399316979,-5000.0,0.00043,120]
[394237130,1763399317023,-644.41454545,0.00043,120]
[394237131,1763399317070,-499.81,0.00043014,120]
[394237132,1763399317113,-80000.0,0.0004318,113]
[394237133,1763399317153,-1560.57518225,0.000432,120]
[394237134,1763399317195,-891.5315,0.0004322,30]
[394237135,1763399317239,-674.65296219,0.0004328,120]
[394237136,1763399317286,-209.7387154,0.00043299,120]
[394237137,1763399317333,-1885.0,0.00043429,120]
[394237138,1763399317376,-151.0,0.00043441,120]
[394237139,1763399317417,-144059.203,0.00043444,30]
[394237140,1763399317456,-200.0,0.00043469,120]
[394237141,1763399317496,-25000.0,0.000435,120]
[394237142,1763399317536,-5000.0,0.000435,120]
[394237143,1763399317574,-47191.50958677,0.000435,120]
[394237144,1763399317615,-150.0,0.00043518,120]
[394237145,1763399317656,-150.0,0.0004363,120]
[394237146,1763399317696,-239.481878,0.000437,120]
[394237147,1763399317743,-1095.0,0.00043792,30]
[394237148,1763399317786,-150.87904192,0.000438,30]
[394237149,1763399317831,-499.70306096,0.000438,30]
[394237150,1763399317876,-777.56,0.000438,120]
[394237151,1763399317919,-151.0,0.00043836,30]
[394237152,1763399317965,-151.0,0.00043836,30]
[394237153,1763399318010,-151.0,0.00043836,30]
[394237154,1763399318061,-151.0,0.00043836,30]
[394237155,1763399318108,-151.0,0.00043836,30]
[394237156,1763399318151,-295.516028,0.00043836,30]
[394237157,1763399318193,-80000.0,0.0004389,118]
[394237158,1763399318234,-1082.64006809,0.00043987,120]
[394237159,1763399318276,-398.2195005,0.00044,120]
[394237160,1763399318319,-15000.0,0.00044,120]
[394237161,1763399318362,-153.12716,0.00044,120]
[394237162,1763399318404,-337.20484717,0.00044,120]
[394237163,1763399318447,-205.37357554,0.00044,120]
[394237164,1763399318488,-12000.0,0.00044,30]
[394237165,1763399318531,-4307.06286423,0.00044,30]
[394237166,1763399318575,-733.89451698,0.00044,30]
[394237167,1763399318617,-300.0,0.00044,120]
[394237168,1763399318658,-1000.0,0.00044,120]
[394237169,1763399318699,-151.0,0.00044,120]
[394237170,1763399318739,-153.0,0.00044,120]
[394237171,1763399318777,-7004.99,0.00044,120]
[394237172,1763399318817,-3380.9353369,0.00044,120]
[394237173,1763399318855,-856.63,0.00044,30]
[394237174,1763399318901,-566.47,0.00044,30]
[394237175,1763399318943,-1000.0,0.000442,120]
[394237176,1763399318985,-158.46985245,0.0004425,120]
[394237177,1763399319031,-12040.86599883,0.00044324,30]
[394237178,1763399319077,-150.0,0.00044369,120]
[394237179,1763399319119,-150.0,0.00044394,120]
[394237180,1763399319158,-2268.95936903,0.00044444,120]
[394237181,1763399319197,-200.0,0.00044469,120]
[394237182,1763399319236,-25000.0,0.000445,120]
[394237183,1763399319272,-25000.0,0.000445,120]
[394237184,1763399319308,-615.85542411,0.000445,120]
[394237185,1763399319347,-5050.0,0.000445,120]
[394237186,1763399319384,-150.0,0.00044514,120]
[394237187,1763399319419,-70000.0,0.0004457,117]
[394237188,1763399319456,-151.0,0.000446,120]
[394237189,1763399319493,-5000.0,0.000446,120]
[394237190,1763399319530,-420.718342,0.000448,120]
[394237191,1763399319568,-1061.63,0.000448,120]
[394237192,1763399319610,-153.0,0.000448,120]
[394237193,1763399319828,-5000.0,0.000448,120]
[394237194,1763399319872,-179.88550871,0.0004489,120]
[394237195,1763399319916,-318967.3135034,0.000449,30]
[394237196,1763399319959,-2132.371875,0.000449,30]
[394237197,1763399320000,-213.0,0.0004496,30]
[394237198,1763399320044,-50000.0,0.00045,45]
[394237199,1763399320084,-515.28660577,0.00045,120]
[394237200,1763399320123,-15000.0,0.00045,120]
[394237201,1763399320165,-510.05665146,0.00045,120]
[394237202,1763399320205,-155.29488591,0.00045,120]
[394237203,1763399320247,-687.82209658,0.00045,120]
[394237204,1763399320286,-1721.67922788,0.00045,120]
[394237205,1763399320328,-215.12553451,0.00045,120]
[394237206,1763399320367,-632.39288467,0.00045,120]
[394237207,1763399320405,-220.65996376,0.00045,120]
[394237208,1763399320448,-1884.80108518,0.00045,120]
[394237209,1763399320485,-232.1107843,0.00045,30]
[394237210,1763399320526,-20098.39768772,0.00045,30]
[394237211,1763399320564,-1000.0,0.00045,120]
[394237212,1763399320601,-249.99204035,0.00045,120]
[394237213,1763399320638,-2930.0,0.00045,120]
[394237214,1763399320676,-173.82651037,0.00045,120]
[394237215,1763399320715,-10000.0,0.00045,30]
[394237216,1763399320756,-412.16,0.00045,120]
[394237217,1763399320798,-283.0,0.00045,120]
[394237218,1763399320838,-150.0,0.00045,120]
[394237219,1763399320880,-5000.0,0.00045,120]
[394237220,1763399320920,-492.85058642,0.00045,120]
[394237221,1763399320958,-150.0,0.00045,60]
[394237222,1763399320996,-150.0,0.00045,120]
[394237223,1763399321036,-420.0,0.00045,120]
[394237224,1763399321076,-150.0,0.00045,120]
[394237225,1763399321118,-150.0,0.00045,120]
[394237226,1763399321162,-300.0,0.00045,120]
[394237227,1763399321200,-1978.06,0.00045,120]
[394237228,1763399321238,-155.02,0.000451,120]
[394237229,1763399321277,-209.7387154,0.00045126,120]
[394237230,1763399321314,-60000.0,0.0004517,116]
[394237231,1763399321352,-151.0,0.000452,120]
[394237232,1763399321392,-197.62974779,0.000452,90]
[394237233,1763399321430,-2000.0,0.000452,120]
[394237234,1763399321468,-2103.0,0.000452,120]
[394237235,1763399321509,-150.0,0.00045239,120]
[394237236,1763399321552,-566.47,0.000453,30]
[394237237,1763399321597,-856.63,0.000453,30]
[394237238,1763399321641,-150.0,0.00045305,120]
[394237239,1763399321684,-128212.6907,0.00045444,30]
[394237240,1763399321726,-200.0,0.00045469,120]
[394237241,1763399321770,-25000.0,0.000455,120]
[394237242,1763399321811,-153.0,0.000456,120]
[394237243,1763399321854,-1338.5,0.00045626,120]
[394237244,1763399321901,-556.81,0.00045746,120]
[394237245,1763399321945,-151.0,0.000459,120]
[394237246,1763399321988,-400.0,0.00045987,31]
[394237247,1763399322034,-15000.0,0.00046,120]
[394237248,1763399322082,-204.33600301,0.00046,30]
[394237249,1763399322132,-212.38814027,0.00046,30]
[394237250,1763399322177,-350.17203543,0.00046,90]
[394237251,1763399322224,-300.0,0.00046,120]
[394237252,1763399322268,-1000.0,0.00046,120]
[394237253,1763399322310,-1000.0,0.00046,60]
[394237254,1763399322352,-300.0,0.00046,60]
[394237255,1763399322395,-280.60572934,0.00046,120]
[394237256,1763399322438,-187.71923059,0.00046,120]
[394237257,1763399322484,-5371.81368672,0.00046,120]
[394237258,1763399322530,-599.14168444,0.00046,120]
[394237259,1763399322575,-466.3385552,0.00046,120]
[394237260,1763399322621,-589.07323322,0.00046,120]
[394237261,1763399322666,-5000.0,0.00046,120]
[394237262,1763399322712,-1543.11285345,0.000462,120]
[394237263,1763399322759,-500.0,0.000462,120]
[394237264,1763399322804,-40000.0,0.0004623,114]
[394237265,1763399322850,-150.0,0.0004635,120]
[394237266,1763399322895,-320.02467008,0.000464,120]
[394237267,1763399322940,-153.0,0.000464,120]
[394237268,1763399322985,-412.14632522,0.00046466,120]
[394237269,1763399323029,-200.0,0.00046469,120]
[394237270,1763399323073,-156.9000336,0.0004649,120]
[394237271,1763399323116,-25000.0,0.000465,120]
[394237272,1763399323156,-151.0,0.000465,120]
[394237273,1763399323197,-566.47,0.000465,30]
[394237274,1763399323239,-856.63,0.000465,30]
[394237275,1763399323281,-150.0,0.00046675,120]
[394237276,1763399323322,-1053.0,0.000468,120]
[394237277,1763399323360,-1000.0,0.00046849,30]
[394237278,1763399323400,-809.27574119,0.000469,120]
[394237279,1763399323437,-630.85806715,0.000469,120]
[394237280,1763399323476,-209.7387154,0.00046952,120]
[394237281,1763399323512,-209.7387154,0.00046952,120]
[394237282,1763399323548,-209.7387154,0.00046952,120]
[394237283,1763399323585,-257.43562933,0.00046952,120]
[394237284,1763399323623,-246.52635032,0.00046952,120]
[394237285,1763399323659,-213.0,0.0004698,30]
[394237286,1763399323696,-500.0,0.00047,120]
[394237287,1763399323733,-15000.0,0.00047,120]
[394237288,1763399323771,-2375.4449172,0.00047,120]
[394237289,1763399323807,-8804.06765532,0.00047,120]
[394237290,1763399323844,-1000.0,0.00047,60]
[394237291,1763399323887,-2930.0,0.00047,120]
[394237292,1763399323925,-438.81542188,0.00047,120]
[394237293,1763399323961,-150.0,0.00047,120]
[394237294,1763399323998,-5000.0,0.00047,120]
[394237295,1763399324038,-151.0,0.000471,120]
[394237296,1763399324276,-153.0,0.000471,120]
[394237297,1763399324318,-1000.0,0.00047123,30]
[394237298,1763399324358,-5000.0,0.000472,120]
[394237299,1763399324397,-253.49861744,0.00047308,120]
[394237300,1763399324435,-1000.0,0.00047397,30]
[394237301,1763399324473,-100841.4421,0.00047444,30]
[394237302,1763399324512,-200.0,0.00047469,120]
[394237303,1763399324554,-500.0,0.000475,120]
[394237304,1763399324591,-25000.0,0.000475,120]
[394237305,1763399324630,-265.08258635,0.000475,120]
[394237306,1763399324666,-50000.0,0.0004754,115]
[394237307,1763399324703,-1000.0,0.00047671,30]
[394237308,1763399324740,-151.0,0.000477,120]
[394237309,1763399324776,-579.37,0.00047767,30]
[394237310,1763399324816,-579.37,0.00047767,30]
[394237311,1763399324855,-579.37,0.00047767,30]
[394237312,1763399324904,-579.37,0.00047767,30]
[394237313,1763399324961,-566.47,0.000478,30]